bitfinex/quotes_ETHUSD_20250703
["timestamp","ask_amount","ask_price","bid_price","bid_amount"]
[1751519440990,13.59491698,2582.7,2582.6,0.02]
[1751519440991,9.723,2582.7,2582.6,0.02]
[1751519442038,9.302,2582.8,2582.7,0.25]
[1751519442214,18.977,2582.8,2582.7,0.25]
[1751519445503,32.84876707,2582.8,2582.7,0.25]
[1751519445707,13.87191698,2582.7,2582.6,0.02]
[1751519451945,13.87191698,2582.7,2582.6,0.27]
[1751519452993,13.87191698,2582.7,2582.6,0.02]
[1751519453966,14.42191698,2582.7,2582.6,0.02]
[1751519455266,42.21294098,2582.7,2582.6,0.02]
[1751519457453,18.51691698,2582.7,2582.6,0.02]
[1751519457881,14.42191698,2582.7,2582.6,0.02]
[1751519458679,42.21294098,2582.7,2582.6,0.02]
[1751519459253,54.34194098,2582.7,2582.6,0.02]
[1751519461373,54.34194098,2582.7,2582.6,1e-08]
[1751519461684,62.33194098,2582.7,2582.6,1e-08]
[1751519462086,63.86534098,2582.7,2582.6,1e-08]
[1751519462257,7.96751674,2582.3,2582.2,1e-08]
[1751519462591,16.01921669,2582.1,2582.0,0.02]
[1751519462788,16.01921669,2582.1,2581.6,0.02]
[1751519462789,3.87341674,2581.7,2581.6,0.02]
[1751519463088,15.95341674,2581.7,2581.6,0.02]
[1751519470573,26.50341674,2581.7,2581.6,0.02]
[1751519473102,13.87341674,2581.7,2581.6,0.02]
[1751519473399,15.75441674,2581.7,2581.6,0.02]
[1751519473697,25.75441674,2581.7,2581.6,0.02]
[1751519474002,25.75741674,2581.7,2581.6,0.02]
[1751519477102,10.0,2581.7,2581.6,0.02]
[1751519477411,21.842,2581.7,2581.6,0.02]
[1751519477898,25.71541674,2581.7,2581.6,0.02]
[1751519478075,25.71541674,2581.7,2581.6,0.27]
[1751519479199,25.71541674,2581.7,2581.6,0.02]
[1751519480089,25.71541674,2581.7,2581.6,0.27]
[1751519482000,25.71541674,2581.7,2581.6,0.02]
[1751519482198,25.71541674,2581.7,2581.6,0.27]
[1751519482403,25.71541674,2581.7,2581.6,0.02]
[1751519482726,26.26541674,2581.7,2581.6,0.02]
[1751519483588,34.25541674,2581.7,2581.6,0.02]
[1751519486395,41.86243259,2581.7,2581.6,0.02]
[1751519489851,65.55845659,2581.7,2581.6,0.02]
[1751519491638,41.86243259,2581.7,2581.6,0.02]
[1751519492036,65.55845659,2581.7,2581.6,0.02]
[1751519492236,69.65345659,2581.7,2581.6,0.02]
[1751519494942,38.31319078,2581.6,2581.5,0.02]
[1751519495239,49.24959078,2581.6,2581.5,0.02]
[1751519497441,58.28659078,2581.6,2581.5,0.02]
[1751519498540,66.27659078,2581.6,2581.5,0.02]
[1751519499842,70.37159078,2581.6,2581.5,0.02]
[1751519501521,77.97860663,2581.6,2581.5,0.02]
[1751519502137,70.37159078,2581.6,2581.5,0.02]
[1751519502338,77.97860663,2581.6,2581.5,0.02]
[1751519503023,54.28258263,2581.6,2581.5,0.02]
[1751519503223,77.97860663,2581.6,2581.5,0.02]
[1751519504347,23.80916678,2581.6,2581.5,0.02]
[1751519504681,19.9356,2581.6,2581.5,0.02]
[1751519504855,11.9456,2581.6,2581.5,0.02]
[1751519505058,11.5966,2581.6,2581.5,0.02]
[1751519505280,0.1936,2581.6,2581.5,0.02]
[1751519505484,21.5966,2581.6,2581.5,0.02]
[1751519505643,0.01,2582.0,2581.9,0.25]
[1751519505972,0.01,2582.0,2581.9,1.7536]
[1751519506679,2.451,2582.0,2581.9,1.7536]
[1751519508879,0.01,2582.0,2581.9,1.7536]
[1751519513571,12.45,2582.7,2581.9,2.68966159]
[1751519513878,12.45,2582.7,2582.6,1.7666]
[1751519515680,2.45,2582.7,2582.6,1.7666]
[1751519516651,2.6436,2582.7,2582.6,1.7666]
[1751519518872,12.6436,2582.7,2582.6,1.7666]
[1751519519073,12.6436,2582.7,2582.6,0.25]
[1751519519597,21.4896,2582.7,2582.6,0.25]
[1751519520755,25.36151698,2582.7,2582.6,0.25]
[1751519521204,33.51853283,2582.7,2582.6,0.25]
[1751519521381,3.87229937,2582.5,2582.3,0.25]
[1751519521693,18.829,2582.4,2582.3,0.25]
[1751519521989,22.70136679,2582.4,2582.3,0.25]
[1751519525079,13.87266671,2582.2,2582.1,0.25]
[1751519525278,13.87266671,2582.2,2581.7,1.6278]
[1751519525279,3.87291077,2582.1,2581.7,1.6278]
[1751519525578,15.03396732,2582.0,2581.7,1.6278]
[1751519526579,25.03396669,2582.0,2581.9,0.25]
[1751519529512,25.58396669,2582.0,2581.9,0.25]
[1751519530509,4.42341674,2581.7,2581.6,0.25]
[1751519530810,16.02196678,2581.6,2581.5,0.02]
[1751519531106,25.32896678,2581.6,2581.5,0.02]
[1751519531910,25.32896678,2581.6,2581.5,1e-08]
[1751519532113,57.01499078,2581.6,2581.5,1e-08]
[1751519537081,61.10999078,2581.6,2581.5,1e-08]
[1751519537286,57.01499078,2581.6,2581.5,1e-08]
[1751519543628,4.42446726,2581.0,2580.9,0.27]
[1751519543834,25.39246726,2581.0,2580.9,0.27]
[1751519552717,32.99948311,2581.0,2580.9,0.27]
[1751519554444,32.99948311,2581.0,2580.9,0.02]
[1751519557554,40.98948311,2581.0,2580.9,0.02]
[1751519558917,24.15446726,2581.0,2580.9,0.02]
[1751519559140,32.75146726,2581.0,2580.9,0.02]
[1751519560360,21.86446726,2581.0,2580.9,0.02]
[1751519560656,32.75146726,2581.0,2580.9,0.02]
[1751519561351,33.30146726,2581.0,2580.9,0.02]
[1751519568530,33.29946726,2581.0,2580.9,0.02]
[1751519576582,40.90648311,2581.0,2580.9,0.02]
[1751519583379,24.70446726,2581.0,2580.9,0.02]
[1751519583588,33.29346726,2581.0,2580.9,0.02]
[1751519583877,33.29246726,2581.0,2580.9,0.02]
[1751519586264,40.89948311,2581.0,2580.9,0.02]
[1751519588070,29.418,2581.0,2580.9,0.02]
[1751519588380,33.29246726,2581.0,2580.9,0.02]
[1751519589148,40.89948311,2581.0,2580.9,0.02]
[1751519591286,33.29246726,2581.0,2580.9,0.02]
[1751519591490,10.28,2581.0,2580.9,1.5827]
[1751519591784,5.19292324,2581.3,2581.2,0.25]
[1751519592180,16.58092324,2581.3,2581.2,0.25]
[1751519592368,26.58092324,2581.3,2581.2,0.25]
[1751519593291,14.12286375,2581.3,2581.2,0.25]
[1751519593474,1.31886375,2581.3,2581.2,1.8127]
[1751519593674,12.15486375,2581.3,2581.2,1.8127]
[1751519594476,22.15486375,2581.3,2581.2,1.8127]
[1751519594955,34.18589656,2581.3,2581.2,0.25]
[1751519599762,4.42431715,2581.1,2581.0,0.25]
[1751519599966,13.00231715,2581.1,2581.0,0.25]
[1751519600162,14.42446726,2581.0,2580.9,0.02]
[1751519601370,14.42446726,2581.0,2580.9,0.27]
[1751519611308,19.862,2581.0,2580.9,0.27]
[1751519611521,30.124,2581.0,2580.9,1.9056]
[1751519611876,9.312,2581.0,2580.9,1.9056]
[1751519612080,11.557,2581.0,2580.9,1.9056]
[1751519612407,11.7506,2581.0,2580.9,1.9056]
[1751519612785,11.557,2581.0,2580.9,1.9056]
[1751519613180,0.1936,2581.2,2581.1,1.8856]
[1751519613379,1.31886375,2581.3,2581.1,1.8856]
[1751519613603,1.31886375,2581.3,2581.2,1.6356]
[1751519622600,1.31886375,2581.3,2581.2,9.24261585]
[1751519622920,1.31886375,2581.3,2581.2,1.6356]
[1751519634017,0.1936,2581.2,2581.1,0.25]
[1751519641263,10.1936,2581.2,2581.1,0.25]
[1751519644551,18.7256,2581.2,2581.1,0.25]
[1751519648364,23.14976705,2581.2,2581.1,0.25]
[1751519648563,19.2756,2581.2,2581.1,0.25]
[1751519648998,23.14976705,2581.2,2581.1,0.25]
[1751519650469,23.14976705,2581.2,2581.0,0.02]
[1751519650470,14.42431715,2581.1,2581.0,0.02]
[1751519650654,22.031333,2581.1,2581.0,0.27]
[1751519651570,23.672033,2581.1,2581.0,0.27]
[1751519652573,23.672033,2581.1,2581.0,0.02]
[1751519653691,23.672033,2581.1,2581.0,0.27]
[1751519654711,23.672033,2581.1,2581.0,0.02]
[1751519663716,23.28275719,2581.1,2581.0,0.02]
[1751519665000,10.55,2581.1,2581.0,0.02]
[1751519665317,19.057,2581.1,2581.0,0.02]
[1751519665525,22.93131715,2581.1,2581.0,0.02]
[1751519666616,22.93031715,2581.1,2581.0,0.02]
[1751519666925,28.367,2581.1,2581.0,0.02]
[1751519667338,19.861,2581.1,2581.0,0.02]
[1751519667638,28.365,2581.1,2581.0,0.02]
[1751519668045,32.23931715,2581.1,2581.0,0.02]
[1751519668408,28.365,2581.1,2581.0,0.02]
[1751519668634,32.23931715,2581.1,2581.0,0.02]
[1751519669003,28.365,2581.1,2581.0,0.02]
[1751519669404,32.23931715,2581.1,2581.0,0.02]
[1751519670034,27.812,2581.1,2581.0,0.02]
[1751519671830,19.311,2581.1,2581.0,0.02]
[1751519672041,27.811,2581.1,2581.0,0.02]
[1751519672224,32.23531715,2581.1,2581.0,0.02]
[1751519681152,33.79451715,2581.1,2581.0,0.02]
[1751519687268,36.00751715,2581.1,2581.0,0.02]
[1751519691478,34.44831715,2581.1,2581.0,0.02]
[1751519691642,30.574,2581.1,2581.0,0.02]
[1751519692574,34.44831715,2581.1,2581.0,0.02]
[1751519694247,22.074,2581.1,2581.0,0.02]
[1751519694661,30.54,2581.1,2581.0,1.5756]
[1751519695778,29.989,2581.1,2581.0,1.5756]
[1751519696181,21.524,2581.1,2581.0,1.5756]
[1751519696474,29.987,2581.1,2581.0,1.5756]
[1751519697054,11.524,2581.1,2581.0,1.5756]
[1751519698780,19.964,2581.1,2581.0,1.5756]
[1751519698997,11.504,2581.1,2581.0,1.5756]
[1751519700476,11.6976,2581.1,2581.0,1.5756]
[1751519700881,11.6976,2581.1,2581.0,1.77952]
[1751519702954,1.31886375,2581.3,2581.2,0.25]
[1751519703160,1.31886375,2581.3,2581.2,1.75]
[1751519711979,2.193,2581.4,2581.2,1.75]
[1751519712519,0.1936,2581.3,2581.2,1.75]
[1751519712681,0.1936,2581.3,2581.2,0.25]
[1751519719816,0.1936,2581.3,2581.2,1.8854]
[1751519720020,2.193,2581.4,2581.2,1.8854]
[1751519720394,2.193,2581.4,2581.2,7.46774004]
[1751519720599,2.193,2581.4,2581.3,0.746774]
[1751519720816,2.193,2581.4,2581.3,2.382174]
[1751519721404,0.01,2581.5,2581.4,1.8854]
[1751519722510,0.01,2581.5,2581.4,2.80580707]
[1751519725215,0.01,2581.5,2581.4,1.17049856]
[1751519726295,0.01,2581.5,2581.4,0.92049856]
[1751519726496,0.01,2581.5,2581.4,1.17049856]
[1751519726728,0.01,2581.5,2581.4,0.25]
[1751519728303,0.01,2581.5,2581.4,1.17098272]
[1751519732453,0.01,2581.5,2581.4,3.27780099]
[1751519732627,0.01,2581.5,2581.4,10.49554103]
[1751519732827,0.01,2581.5,2581.4,3.27780099]
[1751519733040,0.01,2581.5,2581.4,3.08420099]
[1751519735933,0.01,2581.5,2581.4,3.10420099]
[1751519741970,0.01,2581.5,2581.4,1.19098272]
[1751519742167,0.2036,2581.5,2581.4,1.19098272]
[1751519747381,0.01,2581.5,2581.4,3.01198272]
[1751519747685,0.01,2581.5,2581.4,4.16260592]
[1751519747978,0.01,2581.5,2581.4,5.84171681]
[1751519748180,0.01,2581.5,2581.4,4.69109361]
[1751519748378,0.01,2581.5,2581.4,6.22775099]
[1751519752392,0.01,2581.5,2581.4,13.68876827]
[1751519752690,0.01,2581.5,2581.4,17.56263516]
[1751519752895,0.01,2581.5,2581.4,13.68876827]
[1751519753112,0.01,2581.5,2581.4,13.68894454]
[1751519753391,0.01,2581.5,2581.4,12.15211089]
[1751519754571,0.01,2581.5,2581.4,3.77011089]
[1751519754764,0.01,2581.5,2581.4,3.48518239]
[1751519754965,0.01,2581.5,2581.4,1.42220936]
[1751519755372,0.01,2581.5,2581.4,0.27]
[1751519766636,5.39221683,2581.5,2581.4,0.27]
[1751519766837,11.5185,2581.5,2581.4,0.27]
[1751519767746,15.39221683,2581.5,2581.4,0.27]
[1751519768515,11.5185,2581.5,2581.4,0.27]
[1751519768835,12.0685,2581.5,2581.4,0.27]
[1751519770667,15.94221683,2581.5,2581.4,0.27]
[1751519771364,12.0685,2581.5,2581.4,0.27]
[1751519771838,15.94221683,2581.5,2581.4,0.27]
[1751519774046,12.0685,2581.5,2581.4,0.27]
[1751519777543,15.94221683,2581.5,2581.4,0.02]
[1751519779157,15.94221683,2581.5,2581.4,0.27]
[1751519779728,23.15995687,2581.5,2581.4,0.02]
[1751519779938,23.15995687,2581.5,2581.4,0.27]
[1751519780653,23.15995687,2581.5,2581.4,0.02]
[1751519781355,15.94221683,2581.5,2581.4,0.27]
[1751519785241,12.0685,2581.5,2581.4,0.27]
[1751519785667,15.94221683,2581.5,2581.4,0.27]
[1751519790035,15.94221683,2581.5,2581.4,0.02]
[1751519790234,15.94221683,2581.5,2581.4,0.27]
[1751519791166,23.93221683,2581.5,2581.4,0.27]
[1751519792166,31.14995687,2581.5,2581.4,0.27]
[1751519795235,31.14995687,2581.5,2581.4,0.02]
[1751519798355,31.14995687,2581.5,2581.4,0.27]
[1751519798770,31.14995687,2581.5,2581.4,0.02]
[1751519799588,54.84598087,2581.5,2581.4,0.02]
[1751519800168,31.14995687,2581.5,2581.4,0.02]
[1751519800373,54.84598087,2581.5,2581.4,0.02]
[1751519800904,32.24721683,2581.5,2581.4,0.02]
[1751519802271,34.37521683,2581.5,2581.4,0.02]
[1751519802598,8.0,2581.5,2581.4,0.02]
[1751519802784,2.141,2581.5,2581.4,0.27]
[1751519802983,12.141,2581.5,2581.4,0.27]
[1751519803388,0.01,2581.5,2581.4,0.27]
[1751519803572,2.141,2581.5,2581.4,2.75743624]
[1751519803765,2.141,2581.5,2581.4,3.75495387]
[1751519804396,9.307,2582.0,2581.9,0.25]
[1751519804598,19.307,2582.0,2581.9,1.7538]
[1751519804900,9.307,2582.0,2581.9,2.650954]
[1751519805695,9.307,2582.0,2581.9,1.7538]
[1751519806793,18.163,2582.0,2581.9,0.25]
[1751519808909,17.613,2582.0,2581.9,0.25]
[1751519809466,27.613,2582.0,2581.9,0.25]
[1751519810100,39.25370673,2582.0,2581.9,0.25]
[1751519810304,28.163,2582.0,2581.9,0.25]
[1751519810473,30.286,2582.0,2581.9,0.25]
[1751519812584,34.15896669,2582.0,2581.9,0.25]
[1751519812783,30.286,2582.0,2581.9,0.25]
[1751519813426,21.438,2582.0,2581.9,0.25]
[1751519813700,19.732,2582.0,2581.9,0.25]
[1751519817976,19.727,2582.0,2581.9,0.25]
[1751519818801,9.307,2582.0,2581.9,0.25]
[1751519819000,19.724,2582.0,2581.9,0.25]
[1751519819192,9.307,2582.0,2581.9,0.25]
[1751519819392,19.724,2582.0,2581.9,0.25]
[1751519819792,9.307,2582.0,2581.9,0.25]
[1751519819990,19.857,2582.0,2581.9,0.25]
[1751519820219,31.8116,2582.0,2581.9,0.25]
[1751519820399,35.68456669,2582.0,2581.9,0.25]
[1751519821916,34.12596669,2582.0,2581.9,0.25]
[1751519823494,30.253,2582.0,2581.9,0.25]
[1751519824204,34.12596669,2582.0,2581.9,0.25]
[1751519825189,19.307,2582.0,2581.9,0.25]
[1751519825401,29.697,2582.0,2581.9,0.25]
[1751519826624,19.307,2582.0,2581.9,0.25]
[1751519826800,19.695,2582.0,2581.9,1.9003]
[1751519827701,19.694,2582.0,2581.9,1.9003]
[1751519828622,9.307,2582.0,2581.9,1.9003]
[1751519828794,11.419,2582.0,2581.9,1.9003]
[1751519829212,11.419,2582.0,2581.9,0.25]
[1751519830100,9.307,2582.0,2581.9,0.25]
[1751519830314,9.307,2582.0,2581.9,1.7808]
[1751519830315,11.419,2582.0,2581.9,1.7808]
[1751519830821,11.369,2582.0,2581.9,1.7808]
[1751519832230,11.369,2582.0,2581.9,2.70205523]
[1751519832728,11.369,2582.0,2581.9,2.97226075]
[1751519834540,0.1936,2582.2,2582.1,0.25]
[1751519835701,0.1936,2582.2,2582.1,1.17091426]
[1751519836332,2.3056,2582.2,2582.1,1.17091426]
[1751519837355,0.1936,2582.4,2582.1,2.77271426]
[1751519837640,0.1936,2582.4,2582.3,0.25]
[1751519837939,0.1936,2582.4,2582.3,2.77271426]
[1751519838805,2.111,2582.5,2582.3,8.3886543]
[1751519839053,2.111,2582.5,2582.4,7.73667366]
[1751519839218,0.01,2582.6,2582.5,1.868]
[1751519839708,0.01,2582.6,2582.5,2.98058912]
[1751519840239,0.01,2582.6,2582.5,2.78698912]
[1751519840713,0.01,2582.6,2582.5,0.25]
[1751519842136,0.01,2582.6,2582.3,1.6621]
[1751519842306,0.1936,2582.3,2582.2,0.25]
[1751519845705,0.01,2582.6,2582.5,0.25]
[1751519847460,0.01,2582.6,2582.5,1.8335]
[1751519847864,0.01,2582.6,2582.5,2.03621]
[1751519848766,0.01,2582.6,2582.5,2.95404418]
[1751519851244,0.01,2582.6,2582.5,7.01986102]
[1751519851449,0.01,2582.6,2582.5,7.30936917]
[1751519851661,0.01,2582.6,2582.5,3.43715233]
[1751519851860,1.6205,2584.2,2584.1,0.25]
[1751519852072,3.7145,2584.2,2584.1,0.25]
[1751519852237,13.7145,2584.2,2584.1,0.25]
[1751519852431,3.7145,2584.2,2584.1,0.25]
[1751519852962,7.58416953,2584.2,2584.1,0.25]
[1751519853163,5.96126953,2584.2,2584.1,0.25]
[1751519853361,3.6356,2584.2,2584.1,0.25]
[1751519853935,1.5416,2584.2,2584.1,0.25]
[1751519854130,1.5416,2584.5,2584.4,0.25]
[1751519854429,13.6356,2584.5,2584.4,0.25]
[1751519854737,4.1856,2584.5,2584.4,0.25]
[1751519854986,18.05482035,2584.5,2584.4,0.25]
[1751519856470,4.41951979,2584.3,2584.2,0.25]
[1751519856788,10.55,2584.1,2584.0,0.25]
[1751519858097,10.0,2584.1,2584.0,0.25]
[1751519862807,2.093,2584.2,2584.0,0.25]
[1751519867005,14.41981927,2584.1,2584.0,0.25]
[1751519867202,15.93591927,2584.1,2584.0,0.25]
[1751519867412,10.55,2584.1,2584.0,0.25]
[1751519867617,15.93591927,2584.1,2584.0,0.25]
[1751519868386,20.2921,2584.1,2584.0,0.25]
[1751519868618,24.16191927,2584.1,2584.0,0.25]
[1751519869415,10.0,2584.1,2584.0,0.25]
[1751519869600,12.093,2584.1,2584.0,0.25]
[1751519870704,12.643,2584.1,2584.0,0.25]
[1751519870905,26.32861927,2584.1,2584.0,0.25]
[1751519871209,22.4588,2584.1,2584.0,0.25]
[1751519871523,26.32861927,2584.1,2584.0,0.25]
[1751519872233,10.55,2583.8,2583.7,0.25]
[1751519872395,8.773,2583.8,2583.7,0.25]
[1751519872591,24.17206859,2583.8,2583.7,0.25]
[1751519873688,3.87012342,2583.9,2583.8,0.25]
[1751519873689,0.55,2583.9,2583.8,0.25]
[1751519873889,24.73411881,2583.9,2583.8,0.25]
[1751519874900,20.864,2583.9,2583.8,0.25]
[1751519875101,24.73411881,2583.9,2583.8,0.25]
[1751519876194,20.864,2583.9,2583.8,0.25]
[1751519876822,10.1928,2583.8,2583.6,0.25]
[1751519877001,18.77,2583.7,2583.6,0.25]
[1751519878923,24.28641839,2583.7,2583.6,0.25]
[1751519879908,20.416,2583.7,2583.6,0.25]
[1751519880113,24.28641839,2583.7,2583.6,0.25]
[1751519881529,4.61336819,2583.6,2583.5,0.02]
[1751519883619,14.61336819,2583.6,2583.5,0.02]
[1751519883929,14.61336819,2583.6,2582.6,1.14609459]
[1751519883930,3.87161717,2582.9,2582.8,0.25]
[1751519884133,24.71661717,2582.9,2582.8,0.25]
[1751519884628,24.71661717,2582.9,2582.5,0.02]
[1751519884629,4.4220669,2582.6,2582.5,0.27]
[1751519884829,24.2940669,2582.6,2582.5,0.02]
[1751519885041,24.2940669,2582.6,2582.5,0.27]
[1751519889345,12.208,2582.6,2582.5,0.27]
[1751519889551,20.842,2582.6,2582.5,0.27]
[1751519890060,10.0,2582.6,2582.5,0.27]
[1751519890261,20.292,2582.6,2582.5,0.27]
[1751519897329,24.7140669,2582.6,2582.5,0.27]
[1751519897528,26.2736669,2582.6,2582.5,0.27]
[1751519897837,26.2736669,2582.6,2582.5,0.02]
[1751519898362,26.2736669,2582.6,2582.5,0.27]
[1751519899273,26.2736669,2582.6,2582.5,0.02]
[1751519899274,67.64458774,2582.6,2582.5,0.02]
[1751519899575,69.21588774,2582.6,2582.5,0.02]
[1751519899868,34.2703669,2582.6,2582.5,0.02]
[1751519900071,34.2693669,2582.6,2582.5,0.02]
[1751519902750,34.2683669,2582.6,2582.5,0.27]
[1751519905576,30.3963,2582.6,2582.5,0.27]
[1751519905738,20.622,2582.6,2582.5,0.27]
[1751519906064,20.282,2582.6,2582.5,0.27]
[1751519906465,12.082,2582.6,2582.5,1.8213]
[1751519906672,10.282,2582.6,2582.5,1.8213]
[1751519907045,20.282,2582.6,2582.5,1.8213]
[1751519907537,9.306,2583.1,2583.0,0.25]
[1751519907740,19.587,2583.1,2583.0,0.25]
[1751519907944,29.587,2583.1,2583.0,0.25]
[1751519910477,30.135,2583.1,2583.0,0.25]
[1751519910650,34.0063174,2583.1,2583.0,0.25]
[1751519911479,10.0,2583.0,2582.7,0.25]
[1751519911682,12.06761933,2582.9,2582.7,0.25]
[1751519911854,8.196,2582.9,2582.7,0.25]
[1751519914751,12.06762779,2582.9,2582.7,0.25]
[1751519914953,3.87176707,2582.8,2582.7,0.25]
[1751519915476,13.87196706,2582.7,2582.5,0.27]
[1751519915665,18.192,2582.6,2582.5,0.27]
[1751519916291,22.6140669,2582.6,2582.5,0.27]
[1751519916494,18.742,2582.6,2582.5,0.27]
[1751519916655,22.6140669,2582.6,2582.5,0.27]
[1751519916979,18.742,2582.6,2582.5,0.27]
[1751519918372,22.6140669,2582.6,2582.5,0.27]
[1751519918571,18.192,2582.6,2582.5,0.27]
[1751519919701,22.0640669,2582.6,2582.5,0.27]
[1751519919902,23.6868669,2582.6,2582.5,0.27]
[1751519920908,24.2368669,2582.6,2582.5,0.27]
[1751519921084,24.2368669,2582.6,2582.5,0.02]
[1751519922378,24.2368669,2582.6,2582.5,0.02]
[1751519942017,32.2268669,2582.6,2582.5,0.02]
[1751519945119,34.2868669,2582.6,2582.5,0.02]
[1751519945324,57.9947909,2582.6,2582.5,0.02]
[1751519947719,23.9220669,2582.6,2582.5,0.02]
[1751519947934,7.99,2582.6,2582.5,0.02]
[1751519948134,10.05,2582.6,2582.5,0.02]
[1751519948347,18.219,2582.6,2582.5,1.565]
[1751519952928,18.215,2582.6,2582.5,1.565]
[1751519953955,10.225,2582.6,2582.5,1.565]
[1751519954155,14.0970669,2582.6,2582.5,1.565]
[1751519954457,14.0970669,2582.6,2582.5,0.02]
[1751519954825,14.0970669,2582.6,2582.5,0.27]
[1751519955435,14.0970669,2582.6,2582.5,0.02]
[1751519956568,14.0970669,2582.6,2582.5,0.27]
[1751519956935,14.6470669,2582.6,2582.5,0.27]
[1751519957635,10.771,2582.6,2582.5,1.8253]
[1751519959132,3.87167865,2582.9,2582.7,0.25]
[1751519959458,24.64076707,2582.8,2582.7,0.25]
[1751519960451,20.769,2582.8,2582.7,0.25]
[1751519960651,24.64076707,2582.8,2582.7,0.25]
[1751519962972,24.64076707,2582.8,2582.5,0.27]
[1751519962973,4.4220669,2582.6,2582.5,0.27]
[1751519963154,12.5800669,2582.6,2582.5,0.27]
[1751519965277,21.8860669,2582.6,2582.5,0.27]
[1751519966147,18.014,2582.6,2582.5,0.27]
[1751519966460,18.01,2582.6,2582.5,0.27]
[1751519966659,21.8820669,2582.6,2582.5,0.27]
[1751519967477,17.46,2582.6,2582.5,0.27]
[1751519969784,21.3320669,2582.6,2582.5,0.27]
[1751519978179,9.306,2582.6,2582.5,0.27]
[1751519978501,17.451,2582.6,2582.5,0.27]
[1751519981583,21.3230669,2582.6,2582.5,0.27]
[1751519984609,21.8730669,2582.6,2582.5,0.27]
[1751519986429,33.5174669,2582.6,2582.5,0.27]
[1751519986608,23.7280669,2582.6,2582.5,0.27]
[1751519986819,30.044,2582.6,2582.5,0.27]
[1751519986977,29.493,2582.6,2582.5,0.27]
[1751519989591,9.306,2582.6,2582.5,1.9236]
[1751519989790,11.5486,2582.6,2582.5,2.83649645]
[1751519991107,11.5486,2582.6,2582.5,1.9236]
[1751519991307,19.6836,2582.6,2582.5,0.27]
[1751519993703,9.4996,2582.6,2582.5,0.27]
[1751519993934,11.5486,2582.6,2582.5,1.7924]
[1751519994815,9.4996,2582.6,2582.5,1.7924]
[1751519995006,11.355,2582.6,2582.5,2.69217645]
[1751519995201,11.355,2582.6,2582.5,1.7924]
[1751519995896,11.355,2582.6,2582.5,8.99776454]
[1751519996099,11.355,2582.6,2582.5,1.7924]
[1751519999300,19.485,2582.6,2582.5,0.27]
[1751520004325,9.306,2582.6,2582.5,1.9051]
[1751520004528,19.6646,2582.6,2582.5,1.9051]
[1751520004706,11.5386,2582.6,2582.5,1.9051]
[1751520005023,19.6636,2582.6,2582.5,1.9051]
[1751520006259,9.4996,2582.6,2582.5,1.9051]
[1751520006442,10.5386,2582.6,2582.5,1.9051]
[1751520007393,10.345,2582.6,2582.5,9.11046454]
[1751520007687,10.345,2582.6,2582.5,10.07034331]
[1751520007962,18.468,2582.6,2582.5,0.27]
[1751520008162,18.468,2582.6,2582.5,0.02]
[1751520008655,18.468,2582.6,2582.5,0.27]
[1751520008858,18.468,2582.6,2582.5,0.02]
[1751520009075,18.468,2582.6,2582.5,0.27]
[1751520009643,24.4602669,2582.6,2582.5,0.27]
[1751520010051,18.468,2582.6,2582.5,0.27]
[1751520010255,18.467,2582.6,2582.5,0.27]
[1751520010840,22.3390669,2582.6,2582.5,0.27]
[1751520012447,8.306,2582.6,2582.5,0.27]
[1751520012686,18.466,2582.6,2582.5,0.27]
[1751520012878,8.306,2582.6,2582.5,0.27]
[1751520013066,10.345,2582.6,2582.5,1.7922]
[1751520013265,10.345,2582.6,2582.5,8.99756454]
[1751520013478,10.345,2582.6,2582.5,9.89732099]
[1751520013647,10.345,2582.6,2582.5,2.69195645]
[1751520013847,10.345,2582.6,2582.5,1.7922]
[1751520020684,10.345,2582.6,2582.5,0.27]
[1751520023769,8.306,2582.6,2582.5,0.27]
[1751520023985,18.457,2582.6,2582.5,0.27]
[1751520024611,10.345,2582.6,2582.5,0.27]
[1751520025490,10.345,2582.6,2582.5,8.97566454]
[1751520025695,10.345,2582.6,2582.5,10.03699296]
[1751520026484,8.306,2582.6,2582.5,10.03699296]
[1751520026693,8.306,2582.6,2582.5,10.23059296]
[1751520027199,8.306,2582.6,2582.5,11.37668755]
[1751520027721,2.039,2582.8,2582.7,0.25]
[1751520027911,2.039,2582.8,2582.7,1.8185]
[1751520028117,0.01,2583.5,2583.4,0.25]
[1751520028405,0.01,2583.5,2583.4,1.8185]
[1751520028610,0.01,2583.5,2583.4,11.8185]
[1751520028812,0.01,2583.5,2583.4,13.83579099]
[1751520029014,0.01,2583.5,2583.4,3.83579099]
[1751520029481,0.01,2583.5,2583.4,1.8185]
[1751520029809,0.01,2583.5,2583.4,0.25]
[1751520030493,0.01,2583.5,2583.4,8.98676454]
[1751520035278,0.01,2583.5,2583.4,0.25]
[1751520037300,2.039,2583.5,2583.4,0.25]